fUSD/lending_fUSD_20250110
["ID","MTS","AMOUNT","RATE_DAILY","PERIOD"]
[348454756,1736535035627,-500.0,9.997e-05,2]
[348454757,1736535035637,-500.0,9.997e-05,2]
[348454758,1736535035648,-576.49,9.997e-05,2]
[348454759,1736535035657,-500.0,9.997e-05,2]
[348454760,1736535035666,-500.0,9.997e-05,2]
[348454761,1736535035676,-500.0,9.997e-05,2]
[348454762,1736535035685,-500.0,9.997e-05,2]
[348454763,1736535035694,-851.28,9.997e-05,2]
[348454764,1736535035705,-500.0,9.997e-05,2]
[348454765,1736535035715,-941.11,9.997e-05,2]
[348454766,1736535035724,-500.0,9.997e-05,2]
[348454767,1736535035735,-500.0,9.997e-05,2]
[348454768,1736535035745,-483.46269313,9.997e-05,2]
[348454769,1736535035755,-500.0,9.997e-05,2]
[348454770,1736535035765,-500.0,9.997e-05,2]
[348454771,1736535035776,-500.0,9.997e-05,2]
[348454772,1736535035786,-500.0,9.997e-05,2]
[348454773,1736535035796,-500.0,9.997e-05,2]
[348454774,1736535035806,-500.0,9.997e-05,2]
[348454775,1736535035815,-500.0,9.997e-05,2]
[348454776,1736535035824,-500.0,9.997e-05,2]
[348454777,1736535035834,-500.0,9.997e-05,2]
[348454778,1736535035843,-645.67,9.997e-05,2]
[348454779,1736535035854,-500.0,9.997e-05,2]
[348454780,1736535035863,-500.0,9.997e-05,2]
[348454781,1736535035874,-1730.53,9.997e-05,2]
[348454782,1736535035883,-500.0,9.997e-05,2]
[348454783,1736535035893,-500.0,9.997e-05,2]
[348454784,1736535035903,-500.0,9.997e-05,2]
[348454785,1736535035913,-500.0,9.997e-05,2]
[348454786,1736535035923,-500.0,9.997e-05,2]
[348454787,1736535035932,-507.75,9.997e-05,2]
[348454788,1736535035942,-1062.01,9.997e-05,2]
[348454789,1736535035952,-500.0,9.997e-05,2]
[348454790,1736535035961,-500.0,9.997e-05,2]
[348454791,1736535035974,-1447.38,9.997e-05,2]
[348454792,1736535035984,-500.0,9.997e-05,2]
[348454793,1736535035994,-738.02,9.997e-05,2]
[348454794,1736535036004,-500.0,9.997e-05,2]
[348454795,1736535036014,-500.0,9.997e-05,2]
[348454796,1736535036028,-500.0,9.997e-05,2]
[348454797,1736535036038,-500.0,9.997e-05,2]
[348454798,1736535036047,-500.0,9.997e-05,2]
[348454799,1736535036058,-507.06,9.997e-05,2]
[348454800,1736535036070,-917.46,9.997e-05,2]
[348454801,1736535036081,-500.0,9.997e-05,2]
[348454802,1736535036091,-500.0,9.997e-05,2]
[348454803,1736535036103,-1492.46,9.997e-05,2]
[348454804,1736535036113,-500.0,9.997e-05,2]
[348454805,1736535036123,-500.0,9.997e-05,2]
[348454806,1736535036133,-500.0,9.997e-05,2]
[348454807,1736535036143,-500.0,9.997e-05,2]
[348454808,1736535036152,-500.0,9.997e-05,2]
[348454809,1736535036162,-500.0,9.997e-05,2]
[348454810,1736535036172,-500.0,9.997e-05,2]
[348454811,1736535036181,-824.11,9.997e-05,2]
[348454812,1736535036190,-500.0,9.997e-05,2]
[348454813,1736535036200,-500.0,9.997e-05,2]
[348454814,1736535036210,-500.0,9.997e-05,2]
[348454815,1736535036220,-500.0,9.997e-05,2]
[348454816,1736535036230,-500.0,9.997e-05,2]
[348454817,1736535036240,-500.0,9.998e-05,2]
[348454818,1736535036251,-500.0,9.998e-05,2]
[348454819,1736535036261,-500.0,9.998e-05,2]
[348454820,1736535036271,-500.0,9.998e-05,2]
[348454821,1736535036281,-500.0,9.998e-05,2]
[348454822,1736535036291,-500.0,9.998e-05,2]
[348454823,1736535036301,-500.0,9.998e-05,2]
[348454824,1736535036311,-500.0,9.998e-05,2]
[348454825,1736535036322,-500.0,9.998e-05,2]
[348454826,1736535036333,-500.0,9.998e-05,2]
[348454827,1736535036343,-500.0,9.998e-05,2]
[348454828,1736535036353,-500.0,9.998e-05,2]
[348454829,1736535036363,-500.0,9.998e-05,2]
[348454830,1736535036374,-500.0,9.998e-05,2]
[348454831,1736535036386,-500.0,9.998e-05,2]
[348454832,1736535036395,-500.0,9.998e-05,2]
[348454833,1736535036406,-500.0,9.998e-05,2]
[348454834,1736535036416,-500.0,9.998e-05,2]
[348454835,1736535036426,-196.06568716,9.998e-05,2]
[348454836,1736535036436,-500.0,9.998e-05,2]
[348454837,1736535036446,-500.0,9.998e-05,2]
[348454838,1736535036456,-500.0,9.998e-05,2]
[348454839,1736535036466,-500.0,9.998e-05,2]
[348454840,1736535036476,-500.0,9.998e-05,2]
[348454841,1736535036486,-500.0,9.998e-05,2]
[348454842,1736535036496,-500.0,9.998e-05,2]
[348454843,1736535036506,-500.0,9.998e-05,2]
[348454844,1736535036516,-500.0,9.998e-05,2]
[348454845,1736535036527,-500.0,9.998e-05,2]
[348454846,1736535036536,-500.0,9.998e-05,2]
[348454847,1736535036546,-500.0,9.998e-05,2]
[348454848,1736535036556,-500.0,9.998e-05,2]
[348454849,1736535036565,-500.0,9.998e-05,2]
[348454850,1736535036575,-500.0,9.998e-05,2]
[348454851,1736535036584,-500.0,9.998e-05,2]
[348454852,1736535036594,-500.0,9.998e-05,2]
[348454853,1736535036603,-733.66,9.998e-05,2]
[348454854,1736535036614,-500.0,9.998e-05,2]
[348454855,1736535036626,-500.0,9.998e-05,2]
[348454856,1736535036637,-500.0,9.998e-05,2]
[348454857,1736535036647,-1054.44,9.998e-05,2]
[348454858,1736535036658,-500.0,9.998e-05,2]
[348454859,1736535036669,-500.0,9.998e-05,2]
[348454860,1736535036679,-500.0,9.998e-05,2]
[348454861,1736535036691,-551.54527181,9.998e-05,2]
[348454862,1736535036701,-665.87,9.998e-05,2]
[348454863,1736535036712,-500.0,9.998e-05,2]
[348454864,1736535036722,-500.0,9.998e-05,2]
[348454865,1736535036732,-500.0,9.998e-05,2]
[348454866,1736535036744,-500.0,9.998e-05,2]
[348454867,1736535036754,-500.0,9.998e-05,2]
[348454868,1736535036763,-437.572086,9.998e-05,2]
[348454869,1736535036773,-500.0,9.998e-05,2]
[348454870,1736535036782,-500.0,9.998e-05,2]
[348454871,1736535036792,-500.0,9.998e-05,2]
[348454872,1736535036803,-500.0,9.998e-05,2]
[348454873,1736535036813,-500.0,9.998e-05,2]
[348454874,1736535036831,-500.0,9.998e-05,2]
[348454875,1736535036845,-562.327819,9.998e-05,2]
[348454876,1736535036856,-617.7,9.998e-05,2]
[348454877,1736535036865,-500.0,9.998e-05,2]
[348454878,1736535036875,-500.0,9.998e-05,2]
[348454879,1736535036885,-1286.15,9.998e-05,2]
[348454880,1736535036895,-500.0,9.998e-05,2]
[348454881,1736535036905,-500.0,9.998e-05,2]
[348454882,1736535036914,-500.0,9.998e-05,2]
[348454883,1736535036924,-500.0,9.998e-05,2]
[348454884,1736535036934,-162.928753,9.998e-05,2]
[348454885,1736535036943,-500.0,9.998e-05,2]
[348454886,1736535036953,-500.0,9.998e-05,2]
[348454887,1736535036963,-500.0,9.998e-05,2]
[348454888,1736535036974,-500.0,9.998e-05,2]
[348454889,1736535036985,-500.0,9.998e-05,2]
[348454890,1736535036997,-500.0,9.998e-05,2]
[348454891,1736535037008,-500.0,9.998e-05,2]
[348454892,1736535037019,-165.744198,9.998e-05,2]
[348454893,1736535037032,-500.0,9.998e-05,2]
[348454894,1736535037043,-500.0,9.998e-05,2]
[348454895,1736535037054,-500.0,9.998e-05,2]
[348454896,1736535037064,-500.0,9.998e-05,2]
[348454897,1736535037074,-500.0,9.998e-05,2]
[348454898,1736535037084,-500.0,9.998e-05,2]
[348454899,1736535037095,-500.0,9.998e-05,2]
[348454900,1736535037107,-587.6,9.998e-05,2]
[348454901,1736535037117,-500.0,9.998e-05,2]
[348454902,1736535037129,-500.0,9.998e-05,2]
[348454903,1736535037138,-981.75,9.998e-05,2]
[348454904,1736535037148,-1419.09,9.998e-05,2]
[348454905,1736535037157,-500.0,9.998e-05,2]
[348454906,1736535037167,-500.0,9.998e-05,2]
[348454907,1736535037177,-500.0,9.998e-05,2]
[348454908,1736535037187,-500.0,9.998e-05,2]
[348454909,1736535037197,-500.0,9.998e-05,2]
[348454910,1736535037207,-500.0,9.998e-05,2]
[348454911,1736535037216,-1630.18,9.998e-05,2]
[348454912,1736535037226,-500.0,9.998e-05,2]
[348454913,1736535037236,-500.0,9.998e-05,2]
[348454914,1736535037245,-500.0,9.998e-05,2]
[348454915,1736535037255,-500.0,9.998e-05,2]
[348454916,1736535037264,-500.0,9.998e-05,2]
[348454917,1736535037274,-500.0,9.998e-05,2]
[348454918,1736535037283,-500.0,9.998e-05,2]
[348454919,1736535037293,-1601.41,9.998e-05,2]
[348454920,1736535037303,-588.34,9.998e-05,2]
[348454921,1736535037312,-500.0,9.998e-05,2]
[348454922,1736535037321,-500.0,9.998e-05,2]
[348454923,1736535037331,-500.0,9.998e-05,2]
[348454924,1736535037341,-500.0,9.998e-05,2]
[348454925,1736535037351,-500.0,9.998e-05,2]
[348454926,1736535037360,-500.0,9.998e-05,2]
[348454927,1736535037370,-500.0,9.998e-05,2]
[348454928,1736535037382,-500.0,9.998e-05,2]
[348454929,1736535037392,-500.0,9.998e-05,2]
[348454930,1736535037402,-500.0,9.998e-05,2]
[348454931,1736535037412,-500.0,9.998e-05,2]
[348454932,1736535037422,-500.0,9.998e-05,2]
[348454933,1736535037432,-500.0,9.998e-05,2]
[348454934,1736535037442,-500.0,9.998e-05,2]
[348454935,1736535037452,-500.0,9.998e-05,2]
[348454936,1736535037463,-543.35052028,9.998e-05,2]
[348454937,1736535037474,-500.6201531,9.998e-05,2]
[348454938,1736535037484,-500.0,9.998e-05,2]
[348454939,1736535037494,-5000.0,9.998e-05,2]
[348454940,1736535037504,-939.13,0.0001,2]
[348454941,1736535037513,-168.1,0.0001,2]
[348454942,1736535037523,-178.95789906,0.0001,2]
[348454943,1736535037532,-205.88189662,0.0001,2]
[348454944,1736535037542,-205.88189651,0.0001,2]
[348454945,1736535037552,-500.0,0.00010097,2]
[348454946,1736535037562,-500.0,0.00010097,2]
[348454947,1736535037572,-617.65,0.00010097,2]
[348454948,1736535037582,-865.29,0.00010097,2]
[348454949,1736535037591,-645.15,0.00010097,2]
[348454950,1736535037602,-1080.59,0.00010098,2]
[348454951,1736535037611,-861.95,0.00010098,2]
[348454952,1736535037622,-625.77,0.00010098,2]
[348454953,1736535037633,-500.0,0.00010098,2]
[348454954,1736535037642,-989.85,0.00010098,2]
[348454955,1736535037652,-635.83,0.00010098,2]
[348454956,1736535037662,-500.0,0.00010098,2]
[348454957,1736535037672,-503.52493075,0.00010099,2]
[348454958,1736535037681,-500.0,0.00010099,2]
[348454959,1736535037692,-500.0,0.000101,2]
[348454960,1736535037703,-500.0,0.000101,2]
[348454961,1736535037713,-500.0,0.000101,2]
[348454962,1736535037723,-500.0,0.000101,2]
[348454963,1736535037735,-500.0,0.000101,2]
[348454964,1736535037744,-747.32,0.000101,2]
[348454965,1736535037755,-443.14689799,0.000101,2]
[348454969,1736535038034,-1154.9243325,0.000101,2]
[348454970,1736535038046,-125.05876951,0.000101,2]
[348454971,1736535038055,-500.0,0.000101,2]
[348454972,1736535038067,-500.0,0.000101,2]
[348454973,1736535038077,-961.88,0.000101,2]
[348454974,1736535038087,-500.0,0.000101,2]
[348454975,1736535038096,-663.16,0.000101,2]
[348454976,1736535038107,-500.0,0.000101,2]
[348454977,1736535038117,-695.05,0.000101,2]
[348454978,1736535038128,-500.0,0.000101,2]
[348454979,1736535038138,-1000.0,0.000101,2]
[348454980,1736535038147,-566.48,0.000101,2]
[348454981,1736535038157,-500.0,0.000101,2]
[348454982,1736535038167,-1357.05,0.000101,2]
[348454983,1736535038177,-656.46,0.00010102,2]
[348454984,1736535038187,-205.88189651,0.00010117,2]
[348454985,1736535038196,-178.95789889,0.00010119,2]
[348454986,1736535038207,-151.26,0.00010137,2]
[348454987,1736535038218,-1000.0,0.00010152,2]
[348454988,1736535038227,-533.85723644,0.00010226,2]
[348454989,1736535038238,-178.95789889,0.00010241,2]
[348454990,1736535038248,-157.000089,0.00010247,2]
[348454991,1736535038257,-500.0,0.00010247,2]
[348454992,1736535038267,-500.0,0.00010247,2]
[348454993,1736535038276,-500.0,0.00010247,2]
[348454994,1736535038286,-1876.44,0.00010247,2]
[348454995,1736535038296,-500.0,0.00010248,2]
[348454996,1736535038305,-500.0,0.00010248,2]
[348454997,1736535038315,-500.0,0.00010248,2]
[348454998,1736535038324,-500.0,0.00010248,2]
[348454999,1736535038334,-500.0,0.00010248,2]
[348455000,1736535038343,-500.0,0.00010248,2]
[348455001,1736535038353,-500.0,0.00010248,2]
[348455002,1736535038363,-500.0,0.00010248,2]
[348455003,1736535038372,-500.0,0.00010248,2]
[348455004,1736535038384,-500.0,0.00010248,2]
[348455006,1736535038394,-500.0,0.00010248,2]
[348455008,1736535038403,-500.0,0.00010248,2]
[348455010,1736535038413,-500.0,0.00010248,2]
[348455012,1736535038422,-500.0,0.00010248,2]
[348455014,1736535038431,-500.0,0.00010248,2]
[348455016,1736535038440,-500.0,0.00010248,2]
[348455018,1736535038450,-612.64,0.00010248,2]
[348455020,1736535038459,-500.0,0.00010248,2]
[348455022,1736535038469,-500.0,0.00010248,2]
[348455023,1736535038479,-500.0,0.00010248,2]
[348455025,1736535038488,-500.0,0.00010248,2]
[348455027,1736535038498,-500.0,0.00010248,2]
[348455029,1736535038508,-500.0,0.00010248,2]
[348455032,1736535038517,-615.80716313,0.00010248,2]
[348455033,1736535038527,-500.0,0.00010248,2]
[348455035,1736535038536,-500.0,0.00010248,2]
[348455038,1736535038546,-500.0,0.00010248,2]
[348455040,1736535038555,-310.98337892,0.00010248,2]
[348455042,1736535038565,-500.0,0.00010248,2]
[348455044,1736535038575,-500.0,0.00010248,2]
[348455072,1736535038807,-500.0,0.00010248,2]
[348455074,1736535038817,-500.0,0.00010248,2]
[348455076,1736535038827,-500.0,0.00010248,2]
[348455078,1736535038837,-223.84471133,0.00010248,2]
[348455080,1736535038850,-354.24528867,0.00010248,2]
[348455082,1736535038860,-655.04,0.00010249,2]
[348455084,1736535038869,-1717.99,0.00010249,2]
[348455085,1736535038881,-771.37,0.00010249,2]
[348455086,1736535038890,-500.0,0.00010249,2]
[348455087,1736535038900,-702.24,0.00010249,2]
[348455088,1736535038910,-669.76,0.00010249,2]
[348455089,1736535038920,-999.71,0.00010249,2]
[348455090,1736535038931,-754.21,0.00010249,2]
[348455091,1736535038946,-1948.07,0.00010249,2]
[348455092,1736535038964,-205.88189651,0.00010257,2]
[348455093,1736535038986,-500.0,0.0001027,2]
[348455094,1736535038997,-500.0,0.0001027,2]
[348455096,1736535039006,-163.06649931,0.00010271,2]
[348455097,1736535039015,-500.0,0.00010271,2]
[348455099,1736535039026,-500.0,0.00010271,2]
[348455101,1736535039035,-500.0,0.00010271,2]
[348455103,1736535039045,-500.0,0.00010271,2]
[348455105,1736535039054,-500.0,0.00010271,2]
[348455107,1736535039063,-589.55,0.00010271,2]
[348455109,1736535039074,-500.0,0.00010271,2]
[348455111,1736535039083,-500.0,0.00010271,2]
[348455113,1736535039093,-793.79,0.00010271,2]
[348455115,1736535039104,-500.0,0.00010271,2]
[348455117,1736535039115,-500.0,0.00010271,2]
[348455119,1736535039124,-500.0,0.00010271,2]
[348455121,1736535039134,-546.37,0.00010271,2]
[348455122,1736535039145,-500.0,0.00010271,2]
[348455124,1736535039155,-1141.30631551,0.00010271,2]
[348455127,1736535039166,-861.63368449,0.00010271,2]
[348455129,1736535039175,-500.0,0.00010271,2]
[348455131,1736535039184,-630.94,0.00010271,2]
[348455133,1736535039193,-500.0,0.00010271,2]
[348455135,1736535039203,-1113.76,0.00010271,2]
[348455137,1736535039212,-2877.49,0.00010271,2]
[348455139,1736535039221,-610.37196563,0.00010271,2]
[348455141,1736535039230,-500.0,0.00010271,2]
[348455143,1736535039239,-500.0,0.00010271,2]
[348455145,1736535039248,-500.0,0.00010271,2]
[348455147,1736535039257,-500.0,0.00010271,2]
[348455149,1736535039266,-576.49,0.00010271,2]
[348455151,1736535039275,-500.0,0.00010271,2]
[348455152,1736535039284,-599.37,0.00010271,2]
[348455154,1736535039293,-851.28,0.00010271,2]
[348455156,1736535039302,-941.11,0.00010271,2]
[348455158,1736535039312,-500.0,0.00010271,2]
[348455160,1736535039321,-500.0,0.00010271,2]
[348455162,1736535039330,-500.0,0.00010271,2]
[348455164,1736535039340,-500.0,0.00010271,2]
[348455166,1736535039349,-500.0,0.00010271,2]
[348455168,1736535039358,-500.0,0.00010271,2]
[348455170,1736535039367,-1730.53,0.00010271,2]
[348455172,1736535039378,-500.0,0.00010271,2]
[348455174,1736535039388,-503.60305246,0.00010271,2]
[348455176,1736535039397,-500.0,0.00010271,2]
[348455178,1736535039407,-500.0,0.00010271,2]
[348455180,1736535039416,-507.75,0.00010271,2]
[348455182,1736535039427,-1062.01,0.00010271,2]
[348455184,1736535039436,-505.97139791,0.00010271,2]
[348455186,1736535039446,-1447.38,0.00010271,2]
[348455188,1736535039456,-500.0,0.00010271,2]
[348455190,1736535039465,-738.02,0.00010271,2]
[348455192,1736535039474,-500.0,0.00010271,2]
[348455194,1736535039484,-507.06,0.00010271,2]
[348455196,1736535039494,-917.46,0.00010271,2]
[348455198,1736535039504,-500.0,0.00010271,2]
[348455200,1736535039513,-1492.46,0.00010271,2]
[348455202,1736535039522,-500.0,0.00010271,2]
[348455204,1736535039532,-500.0,0.00010271,2]
[348455206,1736535039542,-500.0,0.00010271,2]
[348455208,1736535039552,-824.11,0.00010271,2]
[348455210,1736535039561,-500.0,0.00010271,2]
[348455212,1736535039571,-500.0,0.00010271,2]
[348455214,1736535039581,-500.0,0.00010272,2]
[348455216,1736535039590,-562.66,0.00010272,2]
[348455218,1736535039600,-500.0,0.00010272,2]
[348455221,1736535039610,-500.0,0.00010272,2]
[348455223,1736535039620,-500.0,0.00010272,2]
[348455225,1736535039631,-500.0,0.00010272,2]
[348455227,1736535039641,-500.0,0.00010272,2]
[348455229,1736535039651,-500.0,0.00010272,2]
[348455230,1736535039660,-500.0,0.00010272,2]
[348455233,1736535039669,-500.0,0.00010272,2]
[348455235,1736535039679,-500.0,0.00010272,2]
[348455236,1736535039688,-500.0,0.00010272,2]
[348455238,1736535039697,-500.0,0.00010272,2]
[348455240,1736535039707,-500.0,0.00010272,2]
[348455242,1736535039716,-500.0,0.00010272,2]
[348455244,1736535039725,-500.0,0.00010272,2]
[348455246,1736535039735,-199.58484133,0.00010272,2]
[348455248,1736535039745,-500.0,0.00010272,2]
[348455250,1736535039754,-500.0,0.00010272,2]
[348455252,1736535039764,-500.0,0.00010272,2]
[348455254,1736535039773,-500.0,0.00010272,2]
[348455256,1736535039784,-500.0,0.00010272,2]
[348455258,1736535039794,-500.0,0.00010272,2]
[348455260,1736535039803,-500.0,0.00010272,2]
[348455262,1736535039812,-733.66,0.00010272,2]
[348455264,1736535039822,-500.0,0.00010272,2]
[348455266,1736535039831,-500.0,0.00010272,2]
[348455268,1736535039841,-500.0,0.00010272,2]
[348455270,1736535039851,-500.0,0.00010272,2]
[348455272,1736535039860,-1054.44,0.00010272,2]
[348455274,1736535039870,-500.0,0.00010272,2]
[348455276,1736535039880,-665.87,0.00010272,2]
[348455278,1736535039889,-500.0,0.00010272,2]
[348455280,1736535039899,-499.13309091,0.00010272,2]
[348455282,1736535039908,-500.0,0.00010272,2]
[348455284,1736535039918,-500.0,0.00010272,2]
[348455286,1736535039928,-500.0,0.00010272,2]
[348455288,1736535039938,-437.572086,0.00010272,2]
[348455290,1736535039948,-500.0,0.00010272,2]
[348455292,1736535039957,-500.0,0.00010272,2]
[348455294,1736535039968,-500.0,0.00010272,2]
[348455296,1736535039978,-500.0,0.00010272,2]
[348455298,1736535039987,-500.0,0.00010272,2]
[348455300,1736535039996,-500.0,0.00010272,2]
[348455301,1736535040006,-562.327819,0.00010272,2]
[348455302,1736535040015,-500.0,0.00010272,2]
[348455304,1736535040026,-500.0,0.00010272,2]
[348455306,1736535040036,-1286.15,0.00010272,2]
[348455308,1736535040046,-500.0,0.00010272,2]
[348455310,1736535040055,-500.0,0.00010272,2]
[348455312,1736535040067,-500.0,0.00010272,2]
[348455314,1736535040077,-500.0,0.00010272,2]
[348455316,1736535040086,-277.32925484,0.00010272,2]
[348455317,1736535040097,-378.53678996,0.00010272,2]
[348455319,1736535040107,-500.0,0.00010272,2]
[348455321,1736535040118,-500.0,0.00010272,2]
[348455323,1736535040129,-500.0,0.00010272,2]
[348455326,1736535040138,-500.0,0.00010272,2]
[348455328,1736535040148,-500.0,0.00010272,2]
[348455330,1736535040157,-500.0,0.00010272,2]
[348455332,1736535040168,-500.0,0.00010272,2]
[348455334,1736535040178,-500.0,0.00010272,2]
[348455336,1736535040188,-500.0,0.00010272,2]
[348455338,1736535040198,-981.75,0.00010272,2]
[348455340,1736535040208,-1419.09,0.00010272,2]
[348455342,1736535040220,-580.10587438,0.00010272,2]
[348455343,1736535040229,-500.0,0.00010272,2]
[348455345,1736535040238,-500.0,0.00010272,2]
[348455347,1736535040248,-500.0,0.00010272,2]
[348455349,1736535040258,-500.0,0.00010272,2]
[348455351,1736535040268,-1630.18,0.00010272,2]
[348455353,1736535040278,-500.0,0.00010272,2]
[348455355,1736535040288,-500.0,0.00010272,2]
[348455357,1736535040297,-500.0,0.00010272,2]
[348455359,1736535040307,-500.0,0.00010272,2]
[348455361,1736535040316,-500.0,0.00010272,2]
[348455363,1736535040325,-500.0,0.00010272,2]
[348455365,1736535040335,-500.0,0.00010272,2]
[348455367,1736535040345,-1601.41,0.00010272,2]
[348455369,1736535040355,-588.34,0.00010272,2]
[348455371,1736535040365,-500.0,0.00010272,2]
[348455373,1736535040374,-500.0,0.00010272,2]
[348455375,1736535040387,-500.0,0.00010272,2]
[348455377,1736535040397,-500.0,0.00010272,2]
[348455379,1736535040406,-500.0,0.00010272,2]
[348455381,1736535040415,-500.0,0.00010272,2]
[348455383,1736535040424,-500.0,0.00010272,2]
[348455385,1736535040433,-500.0,0.00010272,2]
[348455387,1736535040443,-500.0,0.00010272,2]
[348455388,1736535040452,-500.0,0.00010272,2]
[348455390,1736535040461,-500.0,0.00010272,2]
[348455392,1736535040471,-500.0,0.00010272,2]
[348455394,1736535040480,-500.0,0.00010272,2]
[348455396,1736535040489,-500.0,0.00010272,2]
[348455398,1736535040499,-178.95789889,0.00010364,2]
[348455400,1736535040508,-500.0,0.00010371,2]
[348455402,1736535040518,-500.0,0.00010371,2]
[348455404,1736535040527,-617.65,0.00010371,2]
[348455406,1736535040537,-865.29,0.00010371,2]
[348455408,1736535040546,-645.15,0.00010371,2]
[348455410,1736535040556,-1080.59,0.00010372,2]
[348455412,1736535040566,-861.95,0.00010372,2]
[348455414,1736535040575,-625.77,0.00010372,2]
[348455416,1736535040584,-500.0,0.00010372,2]
[348455418,1736535040594,-989.85,0.00010372,2]
[348455420,1736535040603,-635.83,0.00010372,2]
[348455422,1736535040614,-500.0,0.00010372,2]
[348455424,1736535040623,-415.88651455,0.00010374,2]
[348455426,1736535040635,-500.0,0.00010374,2]
[348455428,1736535040644,-500.0,0.00010374,2]
[348455429,1736535040653,-500.0,0.00010374,2]
[348455431,1736535040663,-500.0,0.00010374,2]
[348455433,1736535040673,-747.32,0.00010374,2]
[348455435,1736535040682,-1723.13,0.00010374,2]
[348455437,1736535040691,-500.0,0.00010374,2]
[348455439,1736535040702,-500.0,0.00010374,2]
[348455441,1736535040711,-961.88,0.00010374,2]
[348455443,1736535040720,-500.0,0.00010374,2]
[348455445,1736535040731,-663.16,0.00010374,2]
[348455447,1736535040741,-500.0,0.00010374,2]
[348455449,1736535040750,-695.05,0.00010374,2]
[348455451,1736535040760,-500.0,0.00010374,2]
[348455453,1736535040769,-1000.0,0.00010374,2]
[348455455,1736535040779,-566.48,0.00010374,2]
[348455457,1736535040788,-500.0,0.00010374,2]
[348455459,1736535040797,-1357.05,0.00010374,2]
[348455461,1736535040807,-205.88189651,0.00010396,2]
[348455463,1736535040816,-500.0,0.00010408,2]
[348455465,1736535040826,-602.12,0.00010431,2]
[348455467,1736535040837,-178.95789889,0.00010486,2]
[348455469,1736535040848,-255.0,0.00010506,2]
[348455471,1736535040858,-420.0,0.00010506,2]
[348455473,1736535040869,-500.0,0.00010521,2]
[348455475,1736535040879,-500.0,0.00010521,2]
[348455477,1736535040890,-500.0,0.00010521,2]
[348455479,1736535040899,-1876.44,0.00010521,2]
[348455481,1736535040908,-500.0,0.00010522,2]
[348455482,1736535040918,-500.0,0.00010522,2]
[348455484,1736535040927,-500.0,0.00010522,2]
[348455486,1736535040937,-500.0,0.00010522,2]
[348455488,1736535040947,-500.0,0.00010522,2]
[348455490,1736535040957,-500.0,0.00010522,2]
[348455492,1736535040968,-500.0,0.00010522,2]
[348455494,1736535040978,-500.0,0.00010522,2]
[348455496,1736535040987,-500.0,0.00010522,2]
[348455498,1736535040996,-500.0,0.00010522,2]
[348455500,1736535041006,-500.0,0.00010522,2]
[348455502,1736535041015,-500.0,0.00010522,2]
[348455504,1736535041025,-500.0,0.00010522,2]
[348455506,1736535041036,-500.0,0.00010522,2]
[348455508,1736535041045,-500.0,0.00010522,2]
[348455510,1736535041054,-500.0,0.00010522,2]
[348455512,1736535041063,-500.0,0.00010522,2]
[348455514,1736535041075,-500.0,0.00010522,2]
[348455516,1736535041085,-500.0,0.00010522,2]
[348455518,1736535041093,-500.0,0.00010522,2]
[348455520,1736535041104,-500.0,0.00010522,2]